bitfinex-derivatives/quotes_SOLF0:USTF0_20250623
["timestamp","ask_amount","ask_price","bid_price","bid_amount"]
[1750687767515,2.4037,136.73,136.68,7.3135]
[1750687767813,2.4037,136.73,136.63,20.81671991]
[1750687768320,2.4037,136.73,136.67,7.3141]
[1750687768520,7.3125,136.71,136.63,20.81671991]
[1750687768718,2.4037,136.73,136.63,20.81671991]
[1750687769319,2.4037,136.73,136.65,20.81671991]
[1750687770214,9.7151,136.73,136.69,7.313]
[1750687770417,2.4037,136.73,136.65,20.81671991]
[1750687770618,7.3121,136.72,136.69,7.3128]
[1750687770921,60.4,136.74,136.67,20.81671991]
[1750687771114,60.4,136.74,136.65,59.44]
[1750687771115,60.4,136.74,136.73,7.3111]
[1750687771315,631.84,136.76,136.69,20.81671991]
[1750687771722,7.3112,136.73,136.69,7.3128]
[1750687771916,7.3112,136.73,136.66,20.77544312]
[1750687772112,631.84,136.76,136.66,20.77544312]
[1750687772317,20.77544312,136.75,136.66,20.77544312]
[1750687772717,7.3114,136.73,136.7,7.3126]
[1750687772918,631.84,136.76,136.65,59.44]
[1750687773228,7.3066,136.82,136.78,7.308]
[1750687773526,59.42,136.83,136.76,20.76784048]
[1750687774016,59.42,136.83,136.75,4.8397]
[1750687774220,59.42,136.83,136.78,20.76784048]
[1750687774520,59.42,136.83,136.77,20.74462164]
[1750687775322,66.7262,136.83,136.79,7.3075]
[1750687775522,59.42,136.83,136.79,7.3075]
[1750687775724,2.3988,136.84,136.75,4.8397]
[1750687775913,61.8354,136.88,136.81,20.74462164]
[1750687776117,61.8354,136.88,136.79,20.74462164]
[1750687776320,20.74462164,136.85,136.78,7.3083]
[1750687776824,7.3082,136.79,136.75,7.3097]
[1750687777725,20.74462164,136.79,136.71,2.2937]
[1750687777922,20.74462164,136.79,136.7,179.6488]
[1750687778125,20.74462164,136.79,136.69,711.86462164]
[1750687778126,7.3093,136.77,136.73,7.311]
[1750687778620,20.74462164,136.79,136.69,652.46462164]
[1750687778827,20.74462164,136.79,136.69,631.72]
[1750687779030,20.74462164,136.77,136.69,631.72]
[1750687779230,59.4,136.76,136.71,7.3119]
[1750687779527,59.4,136.76,136.68,2.3406]
[1750687779528,20.74462164,136.75,136.65,2.2937]
[1750687779714,7.312,136.72,136.68,7.3134]
[1750687780126,2.4891,136.74,136.65,2.2937]
[1750687780530,7.3119,136.72,136.68,7.3137]
[1750687780731,7.3119,136.72,136.65,2.2937]
[1750687781030,7.3113,136.73,136.65,2.2937]
[1750687781230,2.47,136.75,136.66,20.74462164]
[1750687782832,7.3116,136.72,136.68,7.3138]
[1750687783927,2.47,136.75,136.65,2.2937]
[1750687784233,2.47,136.75,136.68,20.74462164]
[1750687784430,59.4,136.76,136.68,20.74462164]
[1750687784728,80.14462164,136.76,136.65,2.2937]
[1750687784933,80.14462164,136.76,136.66,20.74462164]
[1750687785234,20.74462164,136.74,136.65,2.2937]
[1750687785431,7.3125,136.71,136.67,7.3139]
[1750687785634,20.74462164,136.72,136.63,59.4]
[1750687785835,2.2767,136.71,136.63,59.4]
[1750687786630,7.3134,136.69,136.63,59.4]
[1750687786935,66.5373,136.71,136.62,2.3406]
[1750687787234,7.3133,136.69,136.65,7.315]
[1750687787629,7.3145,136.67,136.61,2.3466]
[1750687787832,20.79634037,136.69,136.59,59.42]
[1750687788241,20.79634037,136.67,136.58,2.4326]
[1750687788443,20.79634037,136.65,136.57,2.3466]
[1750687788634,59.42,136.64,136.57,2.3466]
[1750687788835,7.3165,136.63,136.59,7.3185]
[1750687789138,59.42,136.64,136.55,711.79634037]
[1750687789536,66.7361,136.64,136.6,7.3176]
[1750687789742,59.42,136.64,136.57,20.79634037]
[1750687790537,59.42,136.64,136.62,7.3167]
[1750687790734,59.42,136.64,136.57,20.79634037]
[1750687790934,59.42,136.68,136.59,20.79634037]
[1750687791141,59.42,136.68,136.64,7.3158]
[1750687791340,59.42,136.68,136.63,20.79634037]
[1750687791742,7.1173,136.71,136.63,20.79634037]
[1750687792238,2.2767,136.71,136.63,20.79634037]
[1750687792441,2.2767,136.71,136.63,20.78815407]
[1750687792637,7.3141,136.68,136.62,2.4721]
[1750687792842,23.06485407,136.71,136.62,2.4721]
[1750687793043,2.2767,136.71,136.63,20.78815407]
[1750687793343,2.4447,136.74,136.65,20.78238697]
[1750687793550,631.58,136.75,136.67,20.78238697]
[1750687793844,631.58,136.75,136.65,59.42]
[1750687794047,631.58,136.75,136.65,80.19643321]
[1750687794246,7.3117,136.72,136.68,7.3135]
[1750687794448,631.58,136.75,136.65,80.19643321]
[1750687794851,631.58,136.75,136.7,7.3124]
[1750687795350,7.3108,136.74,136.69,7.3129]
[1750687795549,631.58,136.75,136.67,20.77643321]
[1750687795953,638.8904,136.75,136.7,7.3127]
[1750687796251,631.58,136.75,136.67,20.77643321]
[1750687796652,66.7299,136.76,136.71,20.77643321]
[1750687796653,59.42,136.76,136.71,20.77643321]
[1750687796852,2.3176,136.79,136.71,20.77643321]
[1750687797157,58.4,136.8,136.73,20.77643321]
[1750687797349,58.4,136.8,136.71,20.77643321]
[1750687797549,65.7077,136.8,136.75,7.3097]
[1750687797750,60.7176,136.8,136.71,20.77643321]
[1750687798254,60.7176,136.8,136.68,2.3392]
[1750687798454,20.77643321,136.75,136.68,2.3392]
[1750687798750,7.3119,136.72,136.67,7.314]
[1750687799145,2.4925,136.72,136.64,2.3392]
[1750687799354,2.4925,136.72,136.68,7.3134]
[1750687799654,2.4925,136.72,136.64,2.3392]
[1750687799850,2.4925,136.72,136.67,7.3138]
[1750687800052,2.4925,136.72,136.64,2.3392]
[1750687800654,2.4925,136.72,136.63,631.7]
[1750687800655,20.77643321,136.71,136.63,631.7]
[1750687800854,20.77643321,136.71,136.62,2.4721]
[1750687801053,58.4,136.7,136.62,2.4721]
[1750687801755,79.17643321,136.7,136.62,2.4721]
[1750687801956,79.17643321,136.7,136.65,7.3154]
[1750687802352,79.17643321,136.7,136.61,58.4]
[1750687802657,2.4925,136.72,136.64,20.77643321]
[1750687802858,58.4,136.76,136.68,20.77643321]
[1750687803156,20.77643321,136.78,136.65,2.437]
[1750687803157,58.4,136.78,136.67,58.4]
[1750687803347,2.3665,136.77,136.69,20.77643321]
[1750687803547,2.3665,136.77,136.74,7.3103]
[1750687803751,2.3665,136.77,136.69,20.77643321]
[1750687803950,4.7054,136.77,136.69,20.77643321]
[1750687804144,2.3665,136.77,136.7,20.76761783]
[1750687804357,2.3665,136.77,136.69,20.76940375]
[1750687804760,9.6757,136.77,136.72,7.3113]
[1750687805463,2.3665,136.77,136.72,7.3113]
[1750687806054,23.13590375,136.77,136.67,141.16940375]
[1750687806261,2.3521,136.76,136.68,20.76940375]
[1750687807057,633.9989,136.81,136.67,58.4]
[1750687807258,633.9989,136.81,136.73,20.76940375]
[1750687808266,654.76830375,136.81,136.71,20.76940375]
[1750687808856,7.3079,136.79,136.71,20.76940375]
[1750687809056,654.76830375,136.81,136.71,20.76940375]
[1750687809250,7.3098,136.76,136.71,7.3119]
[1750687809459,7.3098,136.76,136.67,58.4]
[1750687809660,2.395,136.76,136.67,58.4]
[1750687809961,4.8177,136.76,136.7,7.3124]
[1750687810155,20.76940375,136.75,136.67,58.4]
[1750687810360,7.312,136.72,136.67,7.314]
[1750687810556,2.3118,136.75,136.65,654.80640375]
[1750687810557,23.08120375,136.75,136.65,654.80640375]
[1750687811358,2.3118,136.75,136.67,20.76940375]
[1750687811864,2.395,136.76,136.74,7.3103]
[1750687812060,2.395,136.76,136.69,20.76940375]
[1750687812455,58.38,136.77,136.69,20.76940375]
[1750687812968,20.76940375,136.76,136.68,60.707]
[1750687813453,58.38,136.77,136.68,60.707]
[1750687813862,58.38,136.77,136.69,20.76940375]
[1750687814058,58.38,136.77,136.68,60.707]
[1750687814059,58.38,136.77,136.72,7.3113]
[1750687814563,2.2735,136.8,136.74,20.76843024]
[1750687815056,2.2735,136.8,136.77,7.3085]
[1750687815561,2.2735,136.8,136.74,20.76843024]
[1750687815964,631.66,136.81,136.74,20.76843024]
[1750687816167,631.66,136.81,136.78,7.308]
[1750687816370,58.38,136.82,136.78,7.308]
[1750687816559,20.7676,136.8,136.69,23.0918]
[1750687816764,79.1476,136.82,136.71,20.7676]
[1750687817369,79.1476,136.82,136.7,20.7676]
[1750687817559,7.3081,136.79,136.7,20.7676]
[1750687817761,20.7676,136.8,136.73,7.3108]
[1750687817962,23.1669,136.78,136.68,60.707]
[1750687818161,60.8485,136.77,136.68,60.707]
[1750687818563,20.7676,136.76,136.68,58.38]
[1750687818764,20.7676,136.76,136.65,636.4903]
[1750687818765,20.7676,136.76,136.65,657.2579]
[1750687819264,7.3108,136.74,136.7,7.3124]
[1750687819461,20.77988382,136.76,136.66,20.77988382]
[1750687819866,7.3103,136.75,136.71,7.3122]
[1750687820070,20.77988382,136.76,136.66,20.77988382]
[1750687820265,20.77988382,136.76,136.65,631.6]
[1750687820463,20.77988382,136.76,136.7,7.3127]
[1750687820660,20.77988382,136.76,136.65,652.37988382]
[1750687820866,20.77988382,136.74,136.68,7.3137]
[1750687821065,2.4451,136.73,136.64,58.38]
[1750687821266,9.7566,136.73,136.64,58.38]
[1750687821471,9.7566,136.73,136.68,7.3135]
[1750687821767,9.7566,136.73,136.6,174.92]
[1750687821768,7.3136,136.69,136.59,67.0777567]
[1750687821965,2.4565,136.68,136.59,79.15988382]
[1750687822160,2.4565,136.68,136.59,58.38]
[1750687822360,2.4565,136.68,136.56,8.6977567]
[1750687822361,20.77988382,136.64,136.56,8.6977567]
[1750687822563,20.77988382,136.62,136.53,58.38]
[1750687822869,58.38,136.67,136.53,58.38]
[1750687822870,20.77988382,136.6,136.53,58.38]
[1750687823069,20.77988382,136.58,136.49,660.93764052]
[1750687823371,20.77988382,136.58,136.49,631.46]
[1750687823760,20.77988382,136.56,136.48,60.7727]
[1750687824064,58.4,136.55,136.48,60.7727]
[1750687824658,58.4,136.55,136.48,2.3927]
[1750687825060,79.17988382,136.55,136.44,67.0977567]
[1750687825273,58.4,136.55,136.46,20.77988382]
[1750687825865,58.4,136.55,136.44,67.0977567]
[1750687826069,7.3214,136.54,136.47,7.3249]
[1750687826370,20.77988382,136.53,136.44,58.4]
[1750687826576,58.4,136.55,136.44,79.17988382]
[1750687826867,79.17988382,136.55,136.44,79.17988382]
[1750687827061,2.3141,136.59,136.49,20.77988382]
[1750687827265,2.3657,136.63,136.55,20.77988382]
[1750687827774,20.77988382,136.62,136.51,25.44778382]
[1750687828078,64.6977,136.61,136.54,7.3209]
[1750687828367,20.77988382,136.6,136.51,23.11768382]
[1750687829368,57.38,136.61,136.55,20.77988382]
[1750687829573,57.38,136.61,136.54,20.77988382]
[1750687829977,57.38,136.61,136.58,7.319]
[1750687830274,57.38,136.61,136.54,20.77988382]
[1750687830976,57.38,136.61,136.57,7.3193]
[1750687831172,57.38,136.61,136.55,20.81360275]
[1750687831384,57.38,136.61,136.52,20.81360275]
[1750687831571,57.38,136.61,136.51,2.3378]
[1750687831572,78.19360275,136.61,136.51,2.3378]
[1750687831770,2.2474,136.6,136.5,23.25180275]
[1750687831966,30.37940275,136.6,136.5,23.25180275]
[1750687832274,2.2474,136.6,136.52,20.81360275]
[1750687832664,2.2474,136.6,136.5,2.4382]
[1750687832868,23.06100275,136.6,136.5,2.4382]
[1750687833467,7.3206,136.56,136.5,7.3233]
[1750687833669,20.81360275,136.54,136.43,1.27472527]
[1750687833873,20.81360275,136.52,136.41,83.04710275]
[1750687834081,57.4,136.52,136.41,62.2335]
[1750687834273,78.21360275,136.52,136.42,20.81360275]
[1750687834575,78.21360275,136.52,136.41,62.2335]
[1750687834576,7.3243,136.49,136.41,62.2335]
[1750687834871,25.51610275,136.51,136.41,62.2335]
[1750687835480,20.81360275,136.48,136.38,20.81360275]
[1750687835672,57.42,136.47,136.38,20.81360275]
[1750687836479,57.42,136.47,136.38,82.81360275]
[1750687836674,57.42,136.47,136.44,7.3263]
[1750687837276,57.42,136.47,136.43,7.327]
[1750687837469,57.42,136.47,136.38,82.81360275]
[1750687837874,57.42,136.47,136.43,7.3269]
[1750687838083,4.7025,136.51,136.41,20.85484165]
[1750687838380,2.4078,136.51,136.48,7.3242]
[1750687838781,2.4078,136.51,136.48,7.3243]
[1750687839180,2.4078,136.51,136.43,20.85484165]
[1750687839579,2.4078,136.51,136.43,20.84743632]
[1750687839980,2.4078,136.51,136.41,78.26743632]
[1750687840576,2.4078,136.51,136.46,7.3252]
[1750687840788,2.4078,136.51,136.43,20.84743632]
[1750687840988,57.42,136.52,136.51,7.3229]
[1750687841282,57.44,136.56,136.49,20.84743632]
[1750687841473,57.44,136.56,136.53,7.3215]
[1750687841673,57.44,136.56,136.47,78.28743632]
[1750687842875,57.44,136.56,136.47,57.44]
[1750687843682,57.44,136.56,136.51,7.3225]
[1750687843989,57.44,136.56,136.5,20.83369701]
[1750687844378,57.44,136.56,136.48,20.83369701]
[1750687844677,57.44,136.56,136.54,7.3212]
[1750687844879,57.44,136.56,136.49,62.0]
[1750687845078,57.44,136.56,136.5,20.83369701]
[1750687845282,634.7296,136.62,136.54,20.83369701]
[1750687845485,57.44,136.67,136.58,20.83369701]
[1750687845790,57.44,136.67,136.6,20.83369701]
[1750687845979,57.44,136.67,136.59,2.4707]
[1750687846185,69.412,136.71,136.65,7.3151]
[1750687846387,62.0995,136.71,136.62,20.83369701]
[1750687846587,62.0995,136.71,136.6,20.83369701]
[1750687846781,7.3129,136.7,136.65,7.3153]
[1750687846983,20.83369701,136.68,136.59,2.4707]
[1750687847190,20.83369701,136.68,136.57,20.83369701]
[1750687847784,28.14769701,136.68,136.62,7.3168]
[1750687847988,20.83369701,136.66,136.56,57.44]
[1750687848285,57.42,136.65,136.58,20.83369701]
[1750687848484,20.83369701,136.74,136.64,20.83369701]
[1750687848991,7.3113,136.73,136.67,7.3142]
[1750687849185,20.83369701,136.74,136.64,20.83369701]
[1750687849385,28.14439701,136.74,136.64,20.83369701]
[1750687849585,158.38787696,136.8,136.67,20.83369701]
[1750687849779,158.38787696,136.8,136.65,14.6302]
[1750687849780,25.67279701,136.85,136.75,20.83369701]
[1750687849984,25.67279701,136.85,136.73,20.83369701]
[1750687850184,4.8391,136.85,136.73,20.83369701]
[1750687850493,25.67279701,136.85,136.75,20.83369701]
[1750687850690,25.67279701,136.85,136.73,20.83369701]
[1750687851087,4.8391,136.85,136.75,20.83369701]
[1750687851387,7.3056,136.84,136.77,7.3088]
[1750687851690,25.67279701,136.85,136.76,20.83369701]
[1750687851894,2.3933,136.85,136.8,7.307]
[1750687852194,57.42,136.86,136.78,20.83369701]
[1750687852388,57.42,136.86,136.78,57.4]
[1750687852586,59.7933,136.9,136.81,20.83369701]
[1750687852783,20.73299363,136.89,136.79,2.3458]
[1750687853086,59.7933,136.9,136.82,20.73853941]
[1750687853287,57.4,136.9,136.84,20.73853941]
[1750687853493,632.26,136.92,136.87,7.3033]
[1750687853689,632.26,136.92,136.86,20.73853941]
[1750687853894,632.26,136.92,136.85,20.72059856]
[1750687854196,4.6942,136.97,136.91,20.71654435]
[1750687854392,4.6942,136.97,136.88,20.71654435]
[1750687854993,4.6942,136.97,136.9,20.71654435]
[1750687855188,57.38,137.0,136.92,20.71654435]
[1750687855495,57.38,137.0,136.93,7.3]
[1750687855690,57.38,137.0,136.9,20.6966304]
[1750687855999,64.6769,137.0,136.93,7.3]
[1750687856190,64.6769,137.0,136.84,2.3061]
[1750687856191,20.6966304,136.96,136.84,2.3061]
[1750687856392,59.5979,136.95,136.84,23.0027304]
[1750687856593,20.6966304,136.94,136.84,23.0027304]
[1750687857185,59.5979,136.95,136.86,20.6966304]
[1750687857689,80.2945304,136.95,136.86,20.6966304]
[1750687858196,80.2945304,136.95,136.84,2.3061]
[1750687858197,57.34,136.95,136.88,20.6966304]
[1750687858795,64.6395,136.95,136.84,2.3061]
[1750687858996,2.4004,136.99,136.9,20.6966304]
[1750687859197,2.4008,137.02,136.92,20.6966304]
[1750687859198,56.36,137.0,136.92,20.6966304]
[1750687859897,63.6572,137.0,136.93,7.3]
[1750687860094,63.6572,137.0,136.92,20.6966304]
[1750687860285,63.6572,137.0,136.91,2.4825]
[1750687860286,56.36,137.0,136.91,23.1791304]
[1750687860486,56.36,137.0,136.91,2.4825]
[1750687860697,56.36,137.0,136.93,20.6966304]
[1750687860892,7.2931,137.07,137.01,7.2961]
[1750687861100,56.32,137.09,136.95,2.2919]
[1750687861296,631.12,137.13,136.95,2.2919]
[1750687861596,56.32,137.14,137.06,20.6966304]
[1750687861799,56.32,137.14,137.07,20.6966304]
[1750687862001,631.12,137.2,137.03,56.32]
[1750687862299,20.6966304,137.16,137.07,20.6966304]
[1750687862494,7.2899,137.13,137.06,7.293]
[1750687862695,20.66976693,137.12,137.01,2.4249]
[1750687862899,20.66976693,137.08,136.96,20.66976693]
[1750687863105,687.06,137.11,136.94,4.6419]
[1750687863106,20.66976693,137.04,136.94,56.3]
[1750687863400,20.66976693,137.04,136.91,2.4249]
[1750687863401,20.66976693,137.02,136.91,2.4249]
[1750687863596,20.66976693,137.0,136.94,7.2994]
[1750687863796,20.66976693,136.98,136.87,25.31166693]
[1750687863996,689.3848,137.01,136.87,25.31166693]
[1750687863997,7.2974,136.99,136.87,25.31166693]
[1750687864199,20.71259535,136.98,136.87,2.3342]
[1750687864501,20.71259535,136.98,136.86,56.3]
[1750687864502,20.72576701,136.94,136.86,56.3]
[1750687864702,20.72576701,136.99,136.88,20.72576701]
[1750687864898,23.03321432,137.01,136.9,20.70841432]
[1750687865090,23.03321432,137.01,136.91,20.70841432]
[1750687865295,23.03321432,137.01,136.89,23.08461432]
[1750687865496,20.70859005,136.99,136.89,23.08479005]
[1750687865698,20.70859005,136.97,136.89,2.3762]
[1750687865898,56.3,136.96,136.89,2.3762]
[1750687866704,56.3,136.96,136.89,23.08479005]
[1750687867208,56.3,137.01,136.95,20.70859005]
[1750687868104,56.3,137.04,136.97,20.70859005]
[1750687868308,56.3,137.04,136.98,20.70859005]
[1750687868703,630.76,137.06,136.95,56.28]
[1750687868912,630.76,137.06,137.03,7.2949]
[1750687869107,630.76,137.06,136.96,2.3268]
[1750687869108,56.28,137.12,137.02,56.28]
[1750687869405,56.28,137.12,137.03,2.3268]
[1750687869606,56.28,137.12,137.07,20.70859005]
[1750687870106,56.28,137.12,137.04,62.0]
[1750687870304,56.28,137.12,137.03,2.3268]
[1750687870305,88.15639284,137.12,137.03,2.3268]
[1750687870501,95.44679284,137.12,137.06,7.2934]
[1750687870704,95.44679284,137.12,137.03,2.3268]
[1750687870705,88.15639284,137.12,137.03,2.3268]
[1750687870904,2.345,137.11,137.03,2.3268]
[1750687871511,7.2914,137.1,137.05,7.2939]
[1750687871805,34.22139284,137.11,136.99,31.87639284]
[1750687872010,31.87639284,137.08,136.96,2.2854]
[1750687872204,56.26,137.07,136.96,2.2854]
[1750687873000,31.87639284,137.05,136.96,2.2854]
[1750687873408,2.345,137.04,136.96,2.2854]
[1750687873915,2.345,137.04,136.96,34.16179284]
[1750687874208,2.345,137.04,136.96,2.2854]
[1750687875010,2.345,137.04,136.94,88.13639284]
[1750687875309,9.6396,137.04,136.99,7.2968]
[1750687875497,2.345,137.04,136.94,56.26]
[1750687876010,9.6399,137.04,136.94,56.26]
[1750687876210,630.34,137.07,136.96,31.87639284]
[1750687876407,686.6,137.07,136.99,31.87639284]
[1750687877307,718.47639284,137.07,136.94,56.26]
[1750687877613,31.87639284,137.04,136.92,31.87639284]
[1750687878014,31.87639284,137.01,136.91,2.4322]
[1750687878216,60.9611,137.0,136.91,2.4322]
[1750687879516,68.258,137.0,136.94,7.2995]
[1750687880116,60.9611,137.0,136.91,2.4322]
[1750687880319,2.3608,137.0,136.93,31.87639284]
[1750687880915,2.3608,137.0,136.91,2.4322]
[1750687880916,34.23719284,137.0,136.91,2.4322]
[1750687881118,34.23719284,137.0,136.88,31.87639284]
[1750687881313,2.3446,136.99,136.88,31.87639284]
[1750687881823,9.6423,136.99,136.88,31.87639284]
[1750687882018,2.3446,136.99,136.88,31.87639284]
[1750687882214,2.3446,136.99,136.94,7.2996]
[1750687882609,2.3446,136.99,136.91,88.13639284]
[1750687883323,2.3608,137.0,136.91,88.13639284]
[1750687885823,9.6576,137.0,136.95,7.2991]
[1750687886222,7.298,136.98,136.93,7.3004]
[1750687886419,2.3608,137.0,136.87,56.26]
[1750687886420,2.2635,136.97,136.87,56.26]
[1750687886620,56.26,136.96,136.87,56.26]
[1750687887626,88.13639284,136.96,136.87,56.26]
[1750687887827,88.13639284,136.96,136.81,2.351]
[1750687887828,31.87639284,136.93,136.81,2.351]
[1750687888020,2.2816,136.92,136.81,2.351]
[1750687888322,9.5827,136.92,136.82,3.15831669]
[1750687888514,57.7816,136.92,136.81,34.22739284]
[1750687888719,89.65799284,136.92,136.81,34.22739284]
[1750687888917,57.7816,136.92,136.88,7.3028]
[1750687889120,57.7816,136.92,136.81,34.22739284]
[1750687889320,65.0829,136.92,136.87,7.3032]
[1750687889526,57.7816,136.92,136.81,34.22739284]
[1750687889726,57.7816,136.92,136.82,3.15964773]
[1750687889920,57.7816,136.92,136.84,31.87639284]
[1750687890122,55.5,136.95,136.85,3.1575909]
[1750687890321,62.7999,136.95,136.89,7.3024]
[1750687890521,55.5,136.95,136.85,2.3996]
[1750687890721,55.5,136.95,136.86,3.18692003]
[1750687890923,55.5,136.95,136.92,7.3008]
[1750687891121,55.5,136.95,136.87,93.87639284]
[1750687891318,7.1144,136.97,136.88,3.19870714]
[1750687891523,55.5,137.0,136.89,35.12518482]
[1750687891722,55.5,137.0,136.9,3.19870714]
[1750687892026,31.92647768,137.03,136.92,31.92647768]
[1750687892027,9.5521,137.02,136.92,31.92647768]
[1750687892226,57.756,137.02,136.95,20.69178479]
[1750687892427,57.756,137.02,136.99,7.297]
[1750687892620,57.756,137.02,136.95,20.69178479]
[1750687893326,55.5,137.02,136.96,3.20625732]
[1750687893527,76.19178479,137.02,136.91,20.69178479]
[1750687893726,20.69178479,136.98,136.92,3.20846845]
[1750687893930,55.52,136.97,136.91,20.69178479]
[1750687894118,4.7377,137.01,136.93,20.69178479]
[1750687894119,60.2577,137.01,136.93,20.69178479]
[1750687894319,60.2577,137.01,136.94,3.20859495]
[1750687894527,7.297,137.0,136.96,7.2986]
[1750687894829,60.2577,137.01,136.96,7.2986]
[1750687895130,7.2981,136.98,136.89,20.69178479]
[1750687895325,20.69178479,136.98,136.9,3.22727841]
[1750687895523,20.69178479,136.98,136.87,62.0]
[1750687895524,2.4545,136.97,136.91,3.22727841]
[1750687895718,20.69178479,136.92,136.83,20.69178479]
[1750687895926,57.9448,136.91,136.84,3.23066512]
[1750687896132,57.9448,136.91,136.88,7.3027]
[1750687896328,57.9448,136.91,136.8,76.19178479]
[1750687896531,2.4545,136.9,136.81,3.22223916]
[1750687896721,23.14628479,136.9,136.82,3.22223916]
[1750687896923,20.69178479,136.88,136.83,3.22223916]
[1750687897131,20.69178479,136.88,136.84,3.22223916]
[1750687897326,20.69178479,136.88,136.85,3.23071723]
[1750687897521,20.69178479,136.88,136.78,2.4407]
[1750687897733,7.3049,136.85,136.81,7.3066]
[1750687897937,7.3049,136.85,136.71,171.42]
[1750687897938,76.19178479,136.86,136.82,3.23149714]
[1750687898124,76.19178479,136.86,136.74,20.69178479]
[1750687898125,20.69178479,136.84,136.74,20.69178479]
[1750687898325,2.4542,136.83,136.8,7.3072]
[1750687898528,2.4542,136.83,136.74,82.69178479]
[1750687898735,9.7602,136.83,136.79,7.3078]
[1750687898932,4.8665,136.83,136.79,7.3078]
[1750687899126,4.8665,136.83,136.74,20.69178479]
[1750687899329,12.1727,136.83,136.79,7.3077]
[1750687899730,4.8665,136.83,136.74,20.69178479]
[1750687899925,4.8665,136.83,136.8,7.3071]
[1750687900636,4.8665,136.83,136.79,7.3078]
[1750687900839,4.8665,136.83,136.72,57.8069]
[1750687901137,20.75608541,136.78,136.69,20.75608541]
[1750687901332,55.54,136.78,136.69,20.75608541]
[1750687901536,55.54,136.78,136.68,2.3465]
[1750687901738,55.54,136.78,136.68,23.10258541]
[1750687902031,55.54,136.78,136.67,55.54]
[1750687902032,20.75608541,136.77,136.67,55.54]
[1750687902237,55.54,136.78,136.67,55.54]
[1750687902238,20.75608541,136.75,136.67,55.54]
[1750687902435,28.06548541,136.77,136.67,55.54]
[1750687902633,55.54,136.78,136.72,7.3114]
[1750687902935,20.75608541,136.75,136.67,55.54]
[1750687903131,20.75608541,136.75,136.64,20.75608541]
[1750687903328,7.1208,136.74,136.68,20.75608541]
[1750687903532,55.54,136.79,136.76,7.3092]
[1750687903838,55.54,136.79,136.7,20.75608541]
[1750687904136,55.54,136.79,136.72,20.75608541]
[1750687904339,55.54,136.79,136.7,20.75608541]
[1750687904641,7.3094,136.77,136.72,7.3113]
[1750687904834,78.55698541,136.79,136.68,76.29608541]
[1750687905034,20.75608541,136.77,136.68,62.0]
[1750687905233,20.79118845,136.72,136.6,23.25018845]
[1750687905535,171.3,136.76,136.6,23.25018845]
[1750687905536,7.3137,136.69,136.6,23.25018845]
[1750687905730,76.35118845,136.7,136.59,55.56]
[1750687905932,20.79118845,136.68,136.59,55.56]
[1750687906333,55.56,136.7,136.6,20.79118845]
[1750687906536,55.56,136.7,136.59,55.56]
[1750687906537,27.86948845,136.71,136.59,55.56]
[1750687906733,83.42948845,136.71,136.6,20.79118845]
[1750687906935,20.79118845,136.69,136.59,55.56]
[1750687907131,20.79118845,136.69,136.59,76.35118845]
[1750687907534,83.42948845,136.71,136.59,76.35118845]
[1750687907840,83.42948845,136.71,136.59,55.56]
[1750687908034,83.42948845,136.71,136.59,76.35118845]
[1750687908236,94.70739063,136.71,136.6,62.0]
[1750687908640,32.06909063,136.68,136.59,55.56]
[1750687908940,62.6383,136.71,136.59,55.56]
[1750687909244,32.06909063,136.69,136.59,55.56]
[1750687909939,32.06909063,136.69,136.56,4.6912]
[1750687910143,32.06909063,136.66,136.56,2.4461]
[1750687910344,171.2,136.68,136.55,55.58]
[1750687910345,32.06909063,136.64,136.55,55.58]
[1750687910543,2.3492,136.63,136.55,55.58]